bitfinex-derivatives/quotes_ETHF0:USTF0_20250411
["timestamp","ask_amount","ask_price","bid_price","bid_amount"]
[1744393748515,1.26403,1583.0,1582.9,4.48135119]
[1744393748714,1.26403,1583.0,1582.9,0.00947119]
[1744393748922,0.01674781,1583.0,1582.9,4.48138119]
[1744393749523,0.01674781,1583.0,1582.9,4.9651614]
[1744393749820,7.81e-06,1583.0,1582.9,7.41498119]
[1744393750020,7.81e-06,1583.0,1582.9,7.89862237]
[1744393750323,2.3746,1583.2,1583.1,1.26395]
[1744393750522,2.9182,1583.4,1583.3,1.26379]
[1744393750924,4.18191,1583.4,1583.3,1.28053]
[1744393751115,2.9182,1583.4,1583.3,1.28053]
[1744393751316,2.9182,1583.4,1583.3,4.48833]
[1744393751516,12.28576362,1583.5,1583.4,1.26371]
[1744393751716,15.20396362,1583.5,1583.4,1.26371]
[1744393751916,15.20396362,1583.5,1583.4,4.21405]
[1744393752123,15.20396362,1583.5,1583.4,1.28045]
[1744393752323,1.26391,1583.2,1583.1,1.2639]
[1744393752623,1.26402,1583.1,1583.0,1.26402]
[1744393752819,6.49056781,1583.1,1583.0,1.26402]
[1744393753015,5.22654781,1583.1,1583.0,1.26402]
[1744393753422,2.77734781,1583.1,1583.0,4.12442]
[1744393753623,2.77734781,1583.1,1583.0,1.26402]
[1744393754126,2.77734781,1583.1,1583.0,1.74831676]
[1744393754328,2.77734781,1583.1,1583.0,4.60871676]
[1744393754525,2.4924,1583.4,1583.1,3.15972]
[1744393754728,5.253,1583.4,1583.3,4.47159]
[1744393754924,5.253,1583.4,1583.3,4.48833781]
[1744393755519,2.7606,1583.4,1583.3,4.48833781]
[1744393755917,0.00947119,1583.7,1583.6,1.26355]
[1744393756419,0.00947119,1583.7,1583.6,1.28029781]
[1744393757028,0.00947119,1583.7,1583.6,4.48809781]
[1744393757627,0.00947119,1583.7,1583.6,4.97150647]
[1744393757827,10.49055481,1583.9,1583.8,1.26339]
[1744393758028,11.92483163,1584.2,1584.1,1.26315]
[1744393758223,11.92483163,1584.2,1584.1,4.47095]
[1744393758420,11.92483163,1584.2,1584.1,9.48769781]
[1744393758620,11.92483163,1584.2,1584.1,12.46099781]
[1744393758621,10.64606163,1584.2,1584.1,12.46099781]
[1744393758926,9.35596163,1584.2,1584.1,12.46099781]
[1744393759431,8.03648163,1584.2,1584.1,12.46099781]
[1744393759931,8.03648163,1584.2,1584.1,7.46099781]
[1744393760529,11.06438163,1584.2,1584.1,7.46099781]
[1744393763131,11.06438163,1584.2,1584.1,4.48769781]
[1744393763534,3.0279,1584.2,1584.1,4.48769781]
[1744393763922,0.00947119,1584.3,1584.1,4.48769781]
[1744393764126,0.00947119,1584.3,1584.2,4.33601781]
[1744393765030,1.19e-06,1584.3,1584.2,4.33601781]
[1744393765248,1.19e-06,1584.3,1584.2,9.33601781]
[1744393765424,1.19e-06,1584.3,1584.2,12.00651781]
[1744393765733,1.19e-06,1584.3,1584.2,15.05719121]
[1744393767533,1.19e-06,1584.3,1584.2,15.05630014]
[1744393768132,1.19e-06,1584.3,1584.2,14.57691781]
[1744393768536,1.19e-06,1584.3,1584.2,15.05629486]
[1744393769338,1.19e-06,1584.3,1584.2,9.57691781]
[1744393769740,1.19e-06,1584.3,1584.2,7.00651781]
[1744393770835,1.19e-06,1584.3,1584.2,4.33601781]
[1744393773735,1.19e-06,1584.3,1584.2,1.27981781]
[1744393774236,1.19e-06,1584.3,1584.2,4.48801781]
[1744393774940,1.19e-06,1584.3,1584.2,1.27981781]
[1744393775335,1.19e-06,1584.3,1584.2,4.48801781]
[1744393775843,5.1032,1585.0,1584.4,6.31427]
[1744393776040,5.1032,1585.0,1584.9,1.26251]
[1744393776351,5.1032,1585.0,1584.9,4.48705781]
[1744393776743,5.1032,1585.0,1584.9,1.27925781]
[1744393777948,10.1032,1585.0,1584.9,1.27925781]
[1744393779153,14.34573,1585.0,1584.9,0.01674781]
[1744393779851,14.34573,1585.0,1584.9,1.27925781]
[1744393780052,13.0833,1585.0,1584.9,1.27925781]
[1744393780253,14.34573,1585.0,1584.9,1.27925781]
[1744393780747,14.34573,1585.0,1584.9,0.01674781]
[1744393780951,14.34573,1585.0,1584.9,1.27925781]
[1744393781147,13.0833,1585.0,1584.9,1.27925781]
[1744393781847,14.34573,1585.0,1584.9,0.01674781]
[1744393783248,1.26267,1584.7,1584.6,1.26269]
[1744393783656,6.26267,1584.7,1584.6,1.26269]
[1744393783959,1.26297,1584.4,1584.3,1.26294]
[1744393784448,6.26297,1584.4,1584.3,1.26294]
[1744393784858,8.1746,1584.4,1584.3,1.26294]
[1744393785259,3.1746,1584.4,1584.3,1.26294]
[1744393785761,4.43751,1584.4,1584.3,1.26294]
[1744393786158,3.1746,1584.4,1584.3,1.26294]
[1744393786757,3.1746,1584.4,1584.3,4.26364]
[1744393786951,2.668,1584.6,1584.5,1.26283]
[1744393787156,5.9412,1584.6,1584.5,1.26283]
[1744393788355,3.2732,1584.6,1584.5,1.26283]
[1744393788563,2.6441,1584.9,1584.8,1.26259]
[1744393788757,5.6615,1584.9,1584.8,1.26259]
[1744393789060,6.92401,1584.9,1584.8,1.26259]
[1744393789259,1.26263,1584.8,1584.7,1.2626]
[1744393789462,3.90667,1584.9,1584.8,1.26259]
[1744393789967,1.26265,1584.8,1584.7,1.26261]
[1744393790360,2.6441,1584.9,1584.8,1.26259]
[1744393790664,3.90661,1584.9,1584.8,1.26259]
[1744393790965,7.6441,1584.9,1584.8,1.26259]
[1744393791164,2.6441,1584.9,1584.8,1.26259]
[1744393791361,2.6441,1584.9,1584.7,1.26261]
[1744393791563,3.90664,1584.9,1584.8,1.26259]
[1744393792265,2.6441,1584.9,1584.8,1.26259]
[1744393792657,1.26269,1584.7,1584.3,3.2078]
[1744393792965,1.26269,1584.7,1584.6,1.26267]
[1744393793160,9.00836,1584.9,1584.3,6.4359]
[1744393793161,5.8519,1584.9,1584.5,3.157]
[1744393793359,1.26263,1584.8,1584.7,1.26259]
[1744393793758,1.26274,1584.7,1584.6,1.2627]
[1744393795165,1.26281,1584.6,1584.5,1.26277]
[1744393795370,1.26291,1584.4,1584.3,1.26294]
[1744393795764,1.26299,1584.3,1584.2,1.31667]
[1744393795964,2.5526,1584.4,1584.3,1.26291]
[1744393796165,2.6232,1584.5,1584.4,1.26291]
[1744393797164,3.88603,1584.5,1584.4,1.26291]
[1744393797364,2.6232,1584.5,1584.4,1.26291]
[1744393797665,3.88603,1584.5,1584.4,1.26291]
[1744393797862,2.6232,1584.5,1584.4,1.26291]
[1744393798264,2.6232,1584.5,1584.4,4.40981]
[1744393798871,3.88603,1584.5,1584.4,4.40981]
[1744393799766,1.26295,1584.4,1584.3,1.26292]
[1744393800072,1.26299,1584.3,1584.2,1.3167]
[1744393800268,1.26299,1584.3,1584.2,0.05368]
[1744393800469,1.26315,1584.1,1584.0,0.00947119]
[1744393800674,1.26347,1583.7,1583.6,0.49905805]
[1744393800864,1.2636,1583.6,1583.4,0.49923473]
[1744393801068,1.2636,1583.6,1583.5,9.4961545]
[1744393801069,1.26355,1583.6,1583.5,9.4961545]
[1744393801263,1.28029781,1583.6,1583.5,9.4961545]
[1744393801469,0.01674781,1583.6,1583.5,10.7597845]
[1744393801666,0.01674781,1583.6,1583.5,13.9360845]
[1744393801870,1.28029781,1583.6,1583.5,13.9360845]
[1744393802176,0.01674781,1583.6,1583.5,13.9360845]
[1744393802670,0.01674781,1583.6,1583.5,17.1438845]
[1744393802968,0.01674781,1583.6,1583.5,13.9360845]
[1744393805481,1.28029781,1583.6,1583.5,12.6724545]
[1744393805678,1.28029781,1583.6,1583.5,13.9360845]
[1744393806269,4.39659781,1583.6,1583.5,13.9360845]
[1744393806670,0.01674781,1583.6,1583.5,4.43993]
[1744393807171,1.28029781,1583.6,1583.5,4.43993]
[1744393807371,1.26363,1583.5,1583.4,1.27311119]
[1744393807676,1.28037781,1583.5,1583.4,1.27311119]
[1744393807874,0.01674781,1583.5,1583.4,1.27311119]
[1744393808175,1.26388,1583.2,1583.0,3.2078]
[1744393808476,1.28069781,1583.1,1583.0,3.1222]
[1744393808669,1.26419,1582.8,1582.7,9.4961545]
[1744393808866,4.47199,1582.8,1582.7,9.4961545]
[1744393809069,9.48873781,1582.8,1582.7,9.4961545]
[1744393809367,3.24054781,1582.8,1582.7,10.7604145]
[1744393809774,3.24054781,1582.8,1582.7,13.8826145]
[1744393810174,4.50473781,1582.8,1582.7,12.6183545]
[1744393810376,3.24054781,1582.8,1582.7,10.7604145]
[1744393810580,0.01674781,1582.8,1582.7,13.9682145]
[1744393810777,0.01674781,1582.8,1582.7,17.1928145]
[1744393810976,1.28093781,1582.8,1582.7,17.1928145]
[1744393811175,0.01674781,1582.8,1582.7,17.1928145]
[1744393812780,0.01674781,1582.8,1582.7,22.1928145]
[1744393812977,0.00947119,1582.9,1582.8,1.26419]
[1744393813781,4.91864548,1583.2,1582.8,6.26419]
[1744393814081,4.91864548,1583.2,1583.1,4.47175]
[1744393814281,4.91864548,1583.2,1583.1,4.48849781]
[1744393814477,3.39562548,1583.2,1583.1,9.48849781]
[1744393814678,2.09769548,1583.2,1583.1,9.48849781]
[1744393814985,3.36156548,1583.2,1583.1,0.01674781]
[1744393815183,2.09769548,1583.2,1583.1,1.28069781]
[1744393815384,2.09769548,1583.2,1583.1,4.48849781]
[1744393815984,0.00947119,1583.3,1583.2,1.26387]
[1744393816171,0.00947119,1583.3,1583.2,1.28061781]
[1744393817085,0.00947119,1583.3,1583.2,4.35261781]
[1744393817387,4.03814,1583.8,1583.7,1.26347]
[1744393817588,1.24672219,1583.7,1583.6,1.26348]
[1744393817781,4.37702219,1583.7,1583.6,1.26348]
[1744393818080,4.37702219,1583.7,1583.5,3.072]
[1744393818081,8.1303,1583.7,1583.2,5.9581]
[1744393818278,1.26369,1583.5,1583.4,1.2637]
[1744393818781,0.0062432,1583.6,1583.3,3.08147119]
[1744393818983,4.27015,1583.5,1583.4,1.26365]
[1744393819185,0.0062432,1583.6,1583.5,1.26363]
[1744393819484,0.0062432,1583.6,1583.5,4.53503]
[1744393822690,0.0062432,1583.6,1583.5,9.53503]
[1744393822888,3.2078,1584.2,1583.9,1.26331]
[1744393823088,3.2078,1584.2,1584.1,1.26315]
[1744393823089,4.47087,1584.2,1584.1,1.26315]
[1744393823294,6.3598,1584.2,1584.1,1.26315]
[1744393823485,3.2078,1584.2,1584.1,1.26315]
[1744393823887,10.03064,1584.3,1584.1,1.26315]
[1744393824087,3.152,1584.2,1584.1,1.26315]
[1744393824390,6.031,1584.6,1584.4,1.26289]
[1744393824590,3.152,1584.5,1584.4,1.26289]
[1744393825190,3.152,1584.5,1584.4,4.42649]
[1744393825893,1.26291,1584.4,1584.3,0.00947119]
[1744393826387,1.2634,1583.8,1583.5,3.2078]
[1744393826584,0.01674781,1583.7,1583.6,1.26347]
[1744393827692,0.01674781,1583.7,1583.6,6.26347]
[1744393827896,4.02347,1584.5,1583.9,3.15821]
[1744393828097,3.1302,1584.4,1584.3,1.26299]
[1744393828291,7.40187228,1584.7,1584.3,3.2078]
[1744393828491,7.40187228,1584.7,1584.5,3.2078]
[1744393828690,7.40187228,1584.7,1584.6,0.01674781]
[1744393828990,10.53207228,1584.7,1584.6,1.27949781]
[1744393829798,10.53207228,1584.7,1584.6,0.01674781]
[1744393829799,4.39287,1584.7,1584.6,0.01674781]
[1744393829989,4.39287,1584.7,1584.6,1.27949781]
[1744393830191,4.39287,1584.7,1584.6,0.01674781]
[1744393830590,1.26275,1584.6,1584.5,0.00947119]
[1744393830893,3.15722,1584.5,1584.0,1.26323]
[1744393831090,1.26317,1584.1,1583.9,4.47104]
[1744393831301,0.01674781,1584.0,1583.9,4.47104]
[1744393833397,7.81e-06,1584.0,1583.9,9.47104]
[1744393833595,9e-06,1584.1,1584.0,1.26323]
[1744393834097,9e-06,1584.1,1584.0,6.26323]
[1744393835696,9e-06,1584.1,1584.0,1.26323]
[1744393836894,10.60967228,1585.3,1584.1,3.2078]
[1744393837099,1.2623,1585.2,1584.8,4.47035]
[1744393837302,23.54830228,1585.3,1584.9,1.26247]
[1744393837501,19.07827228,1585.3,1585.1,0.01674781]
[1744393837701,20.34046228,1585.3,1585.0,1.26236]
[1744393837901,20.34046228,1585.3,1585.2,0.01674781]
[1744393837902,19.07827228,1585.3,1585.2,0.01674781]
[1744393838398,24.07827228,1585.3,1585.2,0.01674781]
[1744393838704,25.34046228,1585.3,1585.2,0.01674781]
[1744393838999,24.07827228,1585.3,1585.2,0.01674781]
[1744393839303,25.34046228,1585.3,1585.2,0.01674781]
[1744393839805,24.07827228,1585.3,1585.2,0.01674781]
[1744393840103,25.34046228,1585.3,1585.2,0.01674781]
[1744393840602,27.28607228,1585.3,1584.4,3.2078]
[1744393840804,1.26244,1585.0,1584.7,1.26261]
[1744393841097,6.079,1585.0,1584.6,3.2078]
[1744393841301,12.99827228,1585.3,1584.6,3.2078]
[1744393841496,3.2078,1585.2,1584.4,3.2078]
[1744393841691,3.2078,1585.2,1584.8,0.00947119]
[1744393841896,1.26251,1584.9,1584.8,0.00947119]
[1744393842089,6.079,1584.9,1584.8,0.00947119]
[1744393842294,11.079,1584.9,1584.8,0.00947119]
[1744393842495,3.2078,1585.2,1585.1,1.26235]
[1744393842710,5.5964,1585.3,1584.8,0.00947119]
[1744393843004,1.26234,1585.2,1584.9,1.26247]
[1744393843202,3.2078,1585.0,1584.8,0.00947119]
[1744393843503,1.26246,1585.0,1584.8,1.27204119]
[1744393843804,6.078,1585.0,1584.8,1.27204119]
[1744393844004,3.1475,1584.9,1584.8,1.27204119]
[1744393844594,3.1475,1585.1,1584.8,0.00947119]
[1744393844904,5.5964,1585.3,1584.8,3.21727119]
[1744393844905,6.8586,1585.3,1584.8,3.21727119]
[1744393845105,3.1475,1585.2,1584.8,3.21727119]
[1744393845402,6.3553,1585.2,1584.8,0.00947119]
[1744393845701,1.26235,1585.1,1584.8,0.00947119]
[1744393845905,3.1475,1585.0,1584.8,1.27202119]
[1744393846295,3.1475,1585.0,1584.9,1.26251]
[1744393846801,10.55740119,1585.4,1585.2,1.26227]
[1744393847000,2.8001,1585.3,1585.2,1.26227]
[1744393847205,1.26246,1585.0,1584.8,1.27202119]
[1744393847398,5.4846,1584.9,1584.8,1.27202119]
[1744393847908,6.74711,1584.9,1584.8,0.00947119]
[1744393849911,6.74711,1584.9,1584.8,2.92477119]
[1744393850202,6.74711,1584.9,1584.8,0.00947119]
[1744393850807,5.4846,1584.9,1584.8,0.00947119]
[1744393851009,2.6845,1584.9,1584.8,1.27206119]
[1744393851212,2.5819,1585.0,1584.9,1.26251]
[1744393851509,2.5819,1585.0,1584.9,4.17781]
[1744393851806,3.84433,1585.0,1584.9,2.9153]
[1744393852308,1.26251,1584.9,1584.8,0.00947119]
[1744393853110,4.27321,1584.9,1584.8,0.00947119]
[1744393854011,2.5819,1585.0,1584.8,0.00947119]
[1744393854211,7.34042,1585.1,1584.9,1.26245]
[1744393854509,6.078,1585.1,1585.0,4.32903]
[1744393855512,7.34035,1585.1,1585.0,4.32903]
[1744393855814,1.26251,1584.9,1584.8,0.00947119]
[1744393856005,4.47031,1584.9,1584.8,0.00947119]
[1744393856405,6.95021,1584.9,1584.8,0.00947119]
[1744393857310,1.26291,1584.4,1584.3,1.26293]
[1744393857506,1.26291,1584.4,1584.3,2.8141]
[1744393858313,3.15759,1584.3,1583.8,0.48554339]
[1744393858607,1.26327,1584.0,1583.9,2.9239]
[1744393858809,1.26327,1584.0,1583.9,2.93337119]
[1744393858810,1.28001781,1584.0,1583.9,2.93337119]
[1744393859013,4.19741781,1584.0,1583.9,2.93337119]
[1744393859408,4.19741781,1584.0,1583.9,0.00947119]
[1744393859604,1.28001781,1584.0,1583.9,0.00947119]
[1744393859814,1.27997781,1584.0,1583.9,2.93337119]
[1744393860008,0.01674781,1584.0,1583.9,4.19668119]
[1744393860415,1.27997781,1584.0,1583.9,0.00947119]
[1744393860614,4.19737781,1584.0,1583.9,0.00947119]
[1744393861013,1.27997781,1584.0,1583.9,0.00947119]
[1744393861206,0.01674781,1584.0,1583.9,1.27278119]
[1744393861515,0.01674781,1584.0,1583.9,9.48058119]
[1744393861719,0.01674781,1584.0,1583.9,4.48058119]
[1744393861910,0.01674781,1584.0,1583.9,0.00947119]
[1744393862109,0.01674781,1584.0,1583.9,1.27278119]
[1744393862611,1.27997781,1584.0,1583.9,1.27278119]
[1744393862812,1.27997781,1584.0,1583.9,0.00947119]
[1744393863008,4.48777781,1584.0,1583.9,0.00947119]
[1744393863533,7.48977781,1584.0,1583.9,0.00947119]
[1744393863732,1.26355,1583.6,1583.5,3.2078]
[1744393863928,6.078,1583.7,1583.4,3.15925]
[1744393864125,1.26387,1583.2,1583.1,2.9065]
[1744393864325,12.44556,1583.2,1582.7,3.2078]
[1744393864520,1.26411,1582.9,1582.8,2.9065]
[1744393864721,3.22454781,1583.0,1582.9,1.26411]
[1744393864931,1.26411,1582.9,1582.8,2.9065]
[1744393865124,1.26411,1582.9,1582.8,4.17069]
[1744393865125,4.18591,1582.9,1582.8,4.17069]
[1744393865432,1.26419,1582.8,1582.7,0.00947119]
[1744393865619,9.0008,1582.9,1582.7,0.00947119]
[1744393865620,6.079,1582.9,1582.8,1.26419]
[1744393865821,6.079,1582.9,1582.8,4.47199]
[1744393866136,0.00947119,1583.0,1582.9,1.26411]
[1744393866427,0.00947119,1583.0,1582.9,4.08961]
[1744393866625,0.00947119,1583.0,1582.9,9.08961]
[1744393866826,0.00947119,1583.0,1582.9,4.08961]
[1744393867629,0.00947119,1583.0,1582.9,9.08961]
[1744393867830,0.00947119,1583.0,1582.9,4.08961]
[1744393869237,1.27350119,1583.0,1582.9,2.8255]
[1744393869535,7.28854119,1583.0,1582.8,1.26419]
[1744393869745,9.07797119,1583.0,1582.9,4.10361]
[1744393869932,6.02447119,1583.0,1582.9,4.10361]
[1744393870442,1.26419,1582.8,1582.7,0.00947119]
[1744393870733,2.5419,1582.9,1582.7,4.11318119]
[1744393870939,6.67987,1582.9,1582.7,4.11318119]
[1744393871134,2.5419,1582.9,1582.8,1.26419]
[1744393871336,1.26419,1582.8,1582.7,0.00947119]
[1744393871544,1.26444,1582.5,1582.4,1.26447]
[1744393871742,7.28044,1582.5,1582.4,1.26447]
[1744393871937,1.26453,1582.4,1582.3,1.26454]
[1744393872138,1.26453,1582.4,1581.9,15.8660445]
[1744393872139,3.2078,1582.4,1581.9,12.7039545]
[1744393872339,1.2648,1582.1,1582.0,4.16582]
[1744393872542,6.016,1582.2,1582.1,1.26474]
[1744393872843,6.02547119,1582.2,1582.1,1.26474]
[1744393873041,1.26482,1582.0,1581.9,9.50562569]
[1744393873746,1.26482,1582.0,1581.9,12.40662569]
[1744393873947,4.08522,1582.0,1581.9,12.40662569]
[1744393874149,2.8204,1582.0,1581.9,13.67152569]
[1744393874343,1.26482,1582.0,1581.9,13.67152569]
[1744393874545,1.26482,1582.0,1581.9,12.40662569]
[1744393874744,9.47262,1582.0,1581.9,5.53942569]
[1744393875047,12.29302,1582.0,1581.9,5.53942569]
[1744393875546,4.08522,1582.0,1581.9,5.53942569]
[1744393875741,2.629,1582.1,1581.9,9.79352569]
[1744393875937,5.4494,1582.1,1582.0,1.26482]
[1744393876251,1.26474,1582.1,1582.0,2.9892]
[1744393876549,4.08514,1582.1,1582.0,2.9892]
[1744393876747,1.26482,1582.0,1581.9,0.00947119]
[1744393876941,4.10262,1582.0,1581.9,0.00947119]
[1744393877337,6.02547119,1582.2,1581.9,1.27437119]
[1744393877543,1.26479,1582.1,1581.9,0.00947119]
[1744393877744,8.86327119,1582.2,1582.0,1.26479]
[1744393877942,10.12793119,1582.2,1582.1,2.8192]
[1744393878445,1.26479,1582.1,1581.9,1.27433119]
[1744393878645,1.26479,1582.1,1582.0,2.8192]
[1744393879348,4.10259,1582.1,1582.0,4.08402]
[1744393879847,0.00947119,1582.2,1582.1,1.26474]
[1744393880044,0.00947119,1582.2,1582.0,4.08399]
[1744393880349,1.26474,1582.1,1582.0,2.8192]
[1744393880747,0.00947119,1582.2,1582.1,1.26474]
[1744393880953,1.26441,1582.6,1582.1,3.16187]
[1744393881252,1.26448,1582.5,1582.4,1.2645]
[1744393881646,1.26439,1582.6,1582.5,1.26442]
[1744393881859,2.9945,1582.8,1582.3,3.16147]
[1744393882050,0.00947119,1582.7,1582.6,1.26432]
[1744393882549,1.26444,1582.5,1582.4,1.26446]
[1744393882744,1.26444,1582.5,1582.3,1.26452]
[1744393882946,1.26444,1582.5,1582.2,2.3233]
[1744393882947,1.26458,1582.3,1582.2,2.3233]
[1744393883249,3.16134,1582.4,1581.8,6.37022]
[1744393883553,1.26473,1582.2,1582.0,1.26482]
[1744393883954,1.26474,1582.1,1582.0,1.26482]
[1744393884154,6.02,1582.2,1581.8,3.2078]
[1744393884359,1.26482,1582.0,1581.7,1.26504]
[1744393884546,4.47262,1582.0,1581.6,1.26508]
[1744393884947,4.24472,1582.0,1581.7,1.26506]
[1744393885143,4.24472,1582.0,1581.6,1.2651]
[1744393885855,4.24472,1582.0,1581.7,1.26506]
[1744393886456,4.24472,1582.0,1581.6,1.26509]
[1744393887647,4.24472,1582.0,1581.5,3.16305]
[1744393887845,1.26482,1582.0,1581.6,3.2078]
[1744393888050,3.2078,1582.1,1581.7,3.16267]
[1744393888245,1.2648,1582.1,1582.0,1.26482]
[1744393888455,6.02,1582.2,1582.1,1.26474]
[1744393889760,1.26482,1582.0,1581.9,0.00947119]
[1744393890461,2.845,1582.1,1581.8,1.26492]
[1744393890662,1.2649,1581.9,1581.8,1.26492]
[1744393891259,1.26514,1581.7,1581.6,1.26513]
[1744393891460,9.1843,1581.9,1581.3,8.75455]
[1744393891759,1.26514,1581.6,1581.5,1.27464119]
[1744393892162,0.00947119,1581.8,1581.5,0.00947119]
[1744393892363,0.00947119,1581.8,1581.7,1.26506]
[1744393892654,1.26514,1581.6,1581.5,0.00947119]
[1744393893063,7.28714,1581.6,1581.5,0.00947119]
[1744393893663,6.022,1581.6,1581.5,1.27469119]
[1744393894461,1.27448119,1581.8,1581.7,1.26506]
[1744393894753,0.00947119,1581.8,1581.7,4.47286]
[1744393895148,0.00947119,1581.8,1581.7,9.47286]
[1744393896263,7.28772,1582.2,1582.1,1.26474]
[1744393896856,6.023,1582.2,1582.1,1.26474]
[1744393897256,7.28766,1582.2,1582.1,1.26474]
[1744393897457,1.26479,1582.1,1582.0,1.26474]
[1744393897658,12.3925,1582.2,1581.8,2.4647]
[1744393897969,1.26483,1582.1,1582.0,1.2648]
[1744393898568,9.18471,1582.2,1581.8,2.4647]
[1744393898755,1.26506,1581.8,1581.7,1.26505]
[1744393898961,1.26512,1581.7,1581.6,1.2651]
[1744393899161,1.26514,1581.6,1581.5,1.27468119]
[1744393899358,1.26512,1581.7,1581.6,1.2651]
[1744393900066,1.26514,1581.6,1581.5,3.01547119]
[1744393900267,1.26514,1581.6,1581.5,4.28069119]
[1744393902173,4.47294,1581.6,1581.5,3.01547119]
[1744393902366,1.26578,1580.9,1580.6,3.2078]
[1744393902667,1.26578,1580.9,1580.6,5.6908]
[1744393902862,1.26568,1581.0,1580.8,4.47355]
[1744393903059,1.26558,1581.1,1580.9,1.26566]
[1744393903261,5.933,1581.2,1580.9,1.26566]
[1744393903465,1.2657,1580.9,1580.8,3.21727119]
[1744393903674,1.2657,1580.9,1580.8,0.00947119]
[1744393903870,2.923,1581.1,1580.9,1.26566]
[1744393904070,1.26561,1581.1,1580.8,3.21727119]
[1744393904264,7.20800119,1581.2,1581.1,1.26554]
[1744393904472,5.94247119,1581.2,1581.1,1.26554]
[1744393904676,1.27493119,1581.2,1581.1,2.9776]
[1744393905284,0.00947119,1581.2,1581.1,4.24314]
[1744393905786,1.27493119,1581.2,1581.1,2.9776]
[1744393906483,1.27493119,1581.2,1581.1,4.24314]
[1744393906779,0.00947119,1581.2,1581.1,4.24314]
[1744393907077,0.00947119,1581.2,1581.1,9.24314]
[1744393907284,0.00947119,1581.2,1581.1,6.74164]
[1744393907476,1.27493119,1581.2,1581.1,6.74164]
[1744393907677,0.00947119,1581.2,1581.1,11.74164]
[1744393908276,0.00947119,1581.2,1581.0,3.2078]
[1744393908587,0.00947119,1581.2,1581.1,4.23244]
[1744393908883,1.27493119,1581.2,1581.1,4.23244]
[1744393909183,1.27493119,1581.2,1581.1,2.9669]
[1744393909373,5.00947119,1581.2,1580.8,2.58517119]
[1744393909578,1.26557,1581.1,1581.0,1.26558]
[1744393909777,1.26562,1581.0,1580.9,4.23254]
[1744393910378,2.85147119,1581.2,1580.9,2.9669]
[1744393910582,1.26562,1581.0,1580.9,4.23258]
[1744393911185,1.26562,1581.0,1580.9,2.9669]
[1744393911591,1.26562,1581.0,1580.9,4.2326]
[1744393911987,1.26561,1581.1,1581.0,1.2656]
[1744393912293,1.27496119,1581.2,1581.1,1.26554]
[1744393912890,1.26557,1581.1,1581.0,1.26555]
[1744393913090,1.26562,1581.0,1580.9,4.23255]
[1744393913293,1.27497119,1581.2,1581.1,1.26554]
[1744393913792,0.00947119,1581.2,1581.1,4.47334]
[1744393913996,0.00947119,1581.2,1581.1,1.26554]
[1744393915095,0.00947119,1581.2,1581.1,4.47334]
[1744393915599,1.26568,1581.0,1580.9,1.26565]
[1744393915899,1.26568,1581.0,1580.9,2.7731]
[1744393916083,1.2657,1580.9,1580.8,0.00947119]
[1744393916392,14.51582119,1581.2,1580.9,1.26566]
[1744393916593,1.2657,1581.0,1580.9,1.26566]
[1744393917697,1.2657,1581.0,1580.9,4.05946]
[1744393918195,1.26558,1581.1,1581.0,1.26554]
[1744393918494,0.00947119,1581.2,1581.1,1.26554]
[1744393918690,1.27493119,1581.2,1581.1,1.26554]
[1744393919098,1.26554,1581.1,1581.0,4.05942]
[1744393919299,1.26554,1581.1,1581.0,2.7938]
[1744393919499,4.24514,1581.1,1581.0,4.05942]
[1744393919695,3.16443,1580.9,1580.3,3.2078]
[1744393919993,1.26586,1580.7,1580.6,4.47369]
[1744393920195,6.83075,1580.8,1580.7,4.18086]
[1744393920393,5.6513,1581.0,1580.7,4.18086]
[1744393920701,5.4231,1581.0,1580.9,1.2657]
[1744393920997,1.26562,1581.0,1580.9,1.2657]
[1744393921195,0.00947119,1581.2,1581.1,1.26554]
[1744393921700,0.00947119,1581.2,1581.1,4.18054]
[1744393921898,1.27493119,1581.2,1581.1,4.18054]
[1744393922303,1.27493119,1581.2,1581.1,2.915]
[1744393922504,1.2657,1580.9,1580.8,3.2078]
[1744393922706,1.26578,1580.8,1580.7,0.00947119]
[1744393922906,1.26578,1580.8,1580.7,1.27527119]
[1744393923308,1.26566,1581.0,1580.9,1.26562]
[1744393924610,1.26566,1581.0,1580.9,4.15002]
[1744393924999,3.84542,1581.1,1581.0,1.26562]
[1744393925302,0.00947119,1581.2,1581.1,1.26554]
[1744393926010,0.00947119,1581.2,1581.1,3.67884]
[1744393926305,0.00947119,1581.2,1581.1,8.67884]
[1744393926499,0.00947119,1581.2,1581.1,1.26554]
[1744393926705,0.00947119,1581.2,1581.1,4.23644]
[1744393927101,1.19e-06,1581.2,1581.1,9.23644]
[1744393927304,1.19e-06,1581.2,1581.1,15.63128007]
[1744393927601,6.02076347,1581.5,1581.4,1.2653]
[1744393927806,6.02076347,1581.5,1581.4,10.3951]
[1744393928004,6.02076347,1581.5,1581.4,1.2653]
[1744393928406,6.02076347,1581.5,1581.4,4.1721]
[1744393928608,7.28598347,1581.5,1581.4,4.1721]
[1744393928809,6.02076347,1581.5,1581.4,4.1721]
[1744393929310,6.02076347,1581.5,1581.4,12.3799]
[1744393929510,4.66421347,1581.5,1581.4,18.76249229]
[1744393930008,4.66421347,1581.5,1581.4,18.7623963]
[1744393930396,3.14796347,1581.5,1581.4,19.25794786]
[1744393930600,1.87961347,1581.5,1581.4,18.7623963]
[1744393930801,1.87961347,1581.5,1581.4,4.6325963]
[1744393931101,0.00947119,1581.6,1581.5,1.26522]
[1744393932900,12.23712504,1582.0,1581.9,1.2649]
[1744393933099,9.80782504,1582.0,1581.9,4.4727]
[1744393933811,8.12682504,1582.0,1581.9,12.3717]
[1744393934007,8.12682504,1582.0,1581.9,18.75198729]
[1744393934209,8.12682504,1582.0,1581.9,18.2927]
[1744393935014,0.00947119,1582.1,1582.0,1.26482]
[1744393935208,0.00947119,1582.1,1582.0,4.11942]
[1744393935811,1.19e-06,1582.1,1582.0,9.11942]
[1744393936306,2.04519148,1582.4,1582.3,1.26458]
[1744393936714,7.04519148,1582.4,1582.3,1.26458]
[1744393936915,10.02059148,1582.4,1582.3,1.26458]
[1744393937106,2.04519148,1582.4,1582.3,1.26458]